bitfinex-derivatives/quotes_BTCF0:USTF0_20250106
["timestamp","ask_amount","ask_price","bid_price","bid_amount"]
[1736140077882,0.12035636,99637.0,99636.0,0.405979]
[1736140078974,0.0036,99641.0,99636.0,0.3608]
[1736140079177,0.00510586,99642.0,99640.0,0.045177]
[1736140079364,0.0036,99642.0,99640.0,0.045177]
[1736140079564,0.0036,99642.0,99641.0,1.5]
[1736140079769,0.12395636,99645.0,99644.0,0.045176]
[1736140080169,0.12395636,99645.0,99644.0,0.405976]
[1736140081379,0.12395636,99645.0,99644.0,1.905976]
[1736140081565,0.12595636,99645.0,99644.0,1.905976]
[1736140081777,0.0056,99645.0,99644.0,1.905976]
[1736140082863,0.0056,99645.0,99644.0,1.91601519]
[1736140085476,0.04517,99656.0,99652.0,0.045172]
[1736140086075,0.045171,99654.0,99644.0,1.8608]
[1736140086283,0.4008,99655.0,99644.0,1.8608]
[1736140086468,0.045174,99647.0,99644.0,1.8608]
[1736140086672,0.045175,99646.0,99644.0,1.8608]
[1736140086982,0.084475,99646.0,99644.0,0.3608]
[1736140087175,0.0392,99645.0,99644.0,0.3608]
[1736140087376,0.0392,99645.0,99644.0,1.8608]
[1736140089479,0.0392,99645.0,99644.0,0.3608]
[1736140089877,0.04518,99635.0,99632.0,0.00150529]
[1736140090086,0.04518,99635.0,99633.0,1.5]
[1736140091183,0.0391,99634.0,99633.0,1.5]
[1736140091583,0.045181,99633.0,99632.0,0.00150529]
[1736140091980,0.045181,99633.0,99632.0,0.00250529]
[1736140092177,0.045181,99633.0,99632.0,1.50250529]
[1736140092577,0.045181,99633.0,99632.0,1.50150529]
[1736140092772,0.045181,99633.0,99632.0,1.50250529]
[1736140094287,0.045181,99633.0,99632.0,1.50150529]
[1736140094471,0.045181,99633.0,99632.0,0.00150529]
[1736140095783,0.16553736,99633.0,99632.0,0.00250529]
[1736140095981,0.16553736,99633.0,99632.0,0.00450529]
[1736140097280,0.16553736,99633.0,99632.0,1.50450529]
[1736140097481,0.16553736,99633.0,99632.0,1.50250529]
[1736140097989,0.16553736,99633.0,99632.0,1.50150529]
[1736140098186,0.045181,99633.0,99632.0,1.50150529]
[1736140099284,0.045181,99633.0,99632.0,0.00150529]
[1736140114104,0.045183,99627.0,99626.0,0.3608]
[1736140115100,0.045183,99627.0,99623.0,0.045185]
[1736140115302,0.045183,99627.0,99626.0,0.001]
[1736140115601,0.045183,99627.0,99626.0,0.002]
[1736140115998,0.12035636,99631.0,99626.0,0.047183]
[1736140117302,0.12035636,99631.0,99628.0,0.045183]
[1736140117803,0.045181,99632.0,99628.0,0.045183]
[1736140118301,0.045182,99631.0,99628.0,0.045183]
[1736140119003,0.150441,99634.0,99628.0,0.045183]
[1736140119194,0.045182,99630.0,99628.0,0.045183]
[1736140120395,0.045182,99630.0,99627.0,0.17942473]
[1736140120396,0.045183,99628.0,99627.0,0.17942473]
[1736140121503,0.045183,99628.0,99624.0,0.23895349]
[1736140121806,0.045184,99626.0,99624.0,0.23895349]
[1736140123006,0.045185,99624.0,99622.0,0.32815349]
[1736140124005,0.045185,99624.0,99623.0,0.23895349]
[1736140125400,0.045185,99624.0,99623.0,0.23995349]
[1736140125706,0.045185,99624.0,99623.0,0.28613849]
[1736140126409,0.045185,99624.0,99623.0,0.047185]
[1736140127706,0.16570599,99624.0,99623.0,0.047185]
[1736140128800,0.12052099,99624.0,99623.0,0.047185]
[1736140129503,0.12052099,99624.0,99623.0,0.002]
[1736140130100,0.12052099,99624.0,99623.0,0.001]
[1736140130306,0.12052099,99624.0,99623.0,0.002]
[1736140132005,0.12052099,99624.0,99622.0,0.088686]
[1736140133509,0.13050875,99624.0,99622.0,0.088686]
[1736140134511,0.13050875,99624.0,99622.0,0.089686]
[1736140135402,0.13050875,99624.0,99622.0,0.091686]
[1736140135797,0.13050875,99624.0,99622.0,0.089686]
[1736140135998,0.13050875,99624.0,99622.0,0.091686]
[1736140136199,0.13050875,99624.0,99622.0,0.090686]
[1736140136401,0.12052099,99625.0,99622.0,0.0465]
[1736140136598,0.12052099,99625.0,99624.0,0.045185]
[1736140137807,0.045184,99626.0,99624.0,0.045185]
[1736140138006,0.05513308,99626.0,99624.0,0.045185]
[1736140138914,0.045184,99626.0,99624.0,0.045185]
[1736140139915,0.150441,99631.0,99628.0,0.045183]
[1736140140105,0.150441,99631.0,99630.0,0.045182]
[1736140141113,0.1607154,99631.0,99630.0,0.045182]
[1736140141303,0.045183,99628.0,99624.0,0.046184]
[1736140141506,0.045183,99628.0,99626.0,0.045184]
[1736140142310,0.045183,99628.0,99627.0,0.3608]
[1736140152923,0.045183,99628.0,99627.0,0.6004993]
[1736140154522,0.045183,99628.0,99627.0,0.3608]
[1736140158020,0.045184,99626.0,99625.0,0.2396993]
[1736140158209,0.045189,99614.0,99600.0,0.0467009]
[1736140159016,0.045189,99614.0,99600.0,0.11022534]
[1736140159221,0.045189,99614.0,99600.0,0.0467009]
[1736140160117,0.045189,99614.0,99613.0,0.002]
[1736140160118,0.2738448,99614.0,99613.0,0.002]
[1736140160928,0.2738448,99614.0,99613.0,0.007]
[1736140161626,0.09402757,99614.0,99613.0,0.007]
[1736140162922,0.10404354,99614.0,99613.0,0.007]
[1736140163126,0.045195,99601.0,99600.0,0.0015059]
[1736140164626,0.045195,99601.0,99600.0,0.0105059]
[1736140165018,0.045195,99601.0,99600.0,0.0155059]
[1736140165524,0.16542154,99601.0,99600.0,0.0155059]
[1736140167121,0.16542154,99601.0,99600.0,0.0115059]
[1736140167428,0.045195,99601.0,99600.0,0.0115059]
[1736140167627,0.045195,99601.0,99600.0,0.0095059]
[1736140168720,0.05532071,99601.0,99600.0,0.008]
[1736140171834,0.01012571,99601.0,99600.0,0.008]
[1736140172035,0.48198655,99605.0,99600.0,0.008]
[1736140172225,0.12022654,99605.0,99604.0,0.3608]
[1736140172532,0.12022654,99605.0,99604.0,0.405994]
[1736140172826,0.00096001,99616.0,99614.0,0.045189]
[1736140173032,0.15028317,99618.0,99614.0,0.3608]
[1736140173229,0.15028317,99618.0,99614.0,0.405989]
[1736140173230,0.045188,99617.0,99614.0,0.405989]
[1736140173427,0.15028317,99618.0,99615.0,1.545189]
[1736140174933,0.09006328,99616.0,99615.0,1.545189]
[1736140177026,0.09006328,99616.0,99615.0,0.045189]
[1736140177434,0.045187,99619.0,99615.0,0.045189]
[1736140177633,0.045188,99618.0,99615.0,0.045189]
[1736140177830,0.04519,99613.0,99612.0,0.00052]
[1736140178133,0.045195,99602.0,99601.0,0.17980884]
[1736140178328,0.045195,99602.0,99595.0,0.045198]
[1736140179028,0.045195,99602.0,99601.0,0.045195]
[1736140180934,0.1353121,99602.0,99601.0,0.045195]
[1736140181526,0.1353121,99602.0,99601.0,0.047195]
[1736140181834,0.1353121,99602.0,99601.0,0.052195]
[1736140182530,0.045195,99602.0,99601.0,0.052195]
[1736140189538,0.045195,99602.0,99601.0,0.23162338]
[1736140193643,0.045195,99602.0,99601.0,0.052195]
[1736140200541,0.15028317,99604.0,99601.0,0.007]
[1736140200847,0.15028317,99604.0,99603.0,0.405994]
[1736140201943,0.15028317,99604.0,99603.0,0.410994]
[1736140202144,0.045193,99607.0,99603.0,1.910994]
[1736140202537,0.045193,99607.0,99604.0,0.045194]
[1736140203144,0.045193,99607.0,99605.0,0.045193]
[1736140204635,0.045193,99607.0,99605.0,0.047193]
[1736140205036,0.145193,99607.0,99605.0,0.047193]
[1736140205337,0.145193,99607.0,99605.0,0.051193]
[1736140207342,0.145193,99607.0,99605.0,0.23096278]
[1736140207543,0.1,99607.0,99605.0,0.23096278]
[1736140208339,0.1,99607.0,99606.0,1.5]
[1736140210040,0.1,99607.0,99606.0,1.502]
[1736140210443,0.1,99607.0,99606.0,0.002]
[1736140210747,0.1,99607.0,99606.0,0.005]
[1736140211449,0.1,99607.0,99606.0,1.505]
[1736140222239,0.1,99607.0,99606.0,1.8658]
[1736140222554,0.0934,99617.0,99615.0,0.045188]
[1736140223251,0.0934,99617.0,99616.0,1.5]
[1736140224445,0.0944,99617.0,99616.0,1.5]
[1736140224844,0.0934,99617.0,99616.0,1.5]
[1736140225245,0.0934,99617.0,99616.0,1.67988471]
[1736140226955,0.0934,99617.0,99616.0,1.502]
[1736140227955,0.0934,99617.0,99616.0,1.503]
[1736140231056,0.0462,99617.0,99616.0,1.503]
[1736140231351,0.15028317,99624.0,99620.0,0.045186]
[1736140231744,0.15028317,99625.0,99620.0,0.045186]
[1736140232055,0.16029348,99625.0,99623.0,0.045185]
[1736140234350,0.01101031,99625.0,99623.0,0.22506123]
[1736140234753,0.01001031,99625.0,99623.0,0.22506123]
[1736140235056,0.15028317,99628.0,99623.0,0.17987623]
[1736140235361,0.3608,99625.0,99623.0,0.17987623]
[1736140235559,0.3608,99625.0,99616.0,1.50056]
[1736140235560,0.3608,99625.0,99624.0,0.17987623]
[1736140236661,0.3618,99625.0,99624.0,0.17987623]
[1736140236854,0.3638,99625.0,99624.0,0.17987623]
[1736140237059,0.3638,99625.0,99621.0,0.17987623]
[1736140237253,0.045185,99622.0,99621.0,0.17987623]
[1736140238459,0.046185,99622.0,99619.0,0.17987623]
[1736140238660,0.0435,99621.0,99619.0,0.17987623]
[1736140240960,0.088686,99621.0,99619.0,0.17987623]
[1736140241458,0.0397,99620.0,99619.0,0.17987623]
[1736140242556,0.04519,99612.0,99611.0,1.5]
[1736140243866,0.04519,99612.0,99611.0,1.501]
[1736140244251,0.08619,99612.0,99611.0,1.502]
[1736140245654,0.08619,99612.0,99611.0,1.68187623]
[1736140246156,0.08619,99612.0,99611.0,0.18187623]
[1736140246354,0.0962961,99612.0,99611.0,0.18187623]
[1736140247269,0.0962961,99612.0,99611.0,0.002]
[1736140256963,0.14513715,99612.0,99611.0,0.002]
[1736140258375,0.2467296,99612.0,99611.0,0.002]
[1736140259070,0.2467296,99612.0,99603.0,0.1]
[1736140259267,0.045194,99604.0,99603.0,0.1]
[1736140260364,0.045194,99604.0,99603.0,0.105]
[1736140260871,0.045194,99604.0,99603.0,0.107]
[1736140273374,0.19561637,99604.0,99603.0,0.107]
[1736140274373,0.045194,99604.0,99603.0,0.107]
[1736140276676,0.045194,99604.0,99596.0,0.17987623]
[1736140276977,0.045203,99585.0,99584.0,0.29960499]
[1736140277181,0.406003,99585.0,99584.0,0.29960499]
[1736140278481,0.40964235,99585.0,99580.0,0.00150626]
[1736140278677,0.045205,99581.0,99580.0,0.00150626]
[1736140278880,0.41072236,99585.0,99565.0,0.087512]
[1736140279078,0.045214,99562.0,99560.0,0.3608]
[1736140279271,0.045216,99556.0,99554.0,0.0433]
[1736140279684,0.06352444,99564.0,99554.0,0.0433]
[1736140279986,0.06352444,99564.0,99557.0,0.045215]
[1736140280174,0.1202481,99562.0,99557.0,0.045215]
[1736140280576,0.3608,99559.0,99557.0,0.045215]
[1736140281282,0.09013082,99558.0,99557.0,0.049215]
[1736140282586,0.09013082,99558.0,99557.0,0.058215]
[1736140282788,0.3608,99559.0,99557.0,0.058215]
[1736140282789,0.45093082,99559.0,99557.0,0.058215]
[1736140282984,0.45093082,99559.0,99557.0,0.049215]
[1736140283178,0.001,99558.0,99557.0,0.058215]
[1736140283683,0.001,99558.0,99557.0,0.059215]
[1736140283984,0.001,99558.0,99557.0,1.559215]
[1736140284288,0.45301083,99559.0,99557.0,1.559215]
[1736140284488,0.45193082,99559.0,99557.0,1.559215]
[1736140285280,0.3618,99559.0,99557.0,1.559215]
[1736140285786,0.001,99558.0,99557.0,1.559215]
[1736140286385,0.3618,99559.0,99557.0,1.559215]
[1736140286786,0.3618,99559.0,99557.0,1.554215]
[1736140286986,0.001,99558.0,99557.0,1.559215]
[1736140287992,0.001,99558.0,99557.0,1.554215]
[1736140288185,0.001,99558.0,99557.0,0.059215]
[1736140288784,0.3618,99559.0,99557.0,0.059215]
[1736140289486,0.001,99558.0,99557.0,0.059215]
[1736140290083,0.3618,99559.0,99557.0,0.059215]
[1736140290580,0.001,99558.0,99557.0,0.054215]
[1736140290785,0.001,99558.0,99557.0,0.059215]
[1736140292195,0.3608,99559.0,99557.0,0.050215]
[1736140292392,0.3618,99559.0,99557.0,0.059215]
[1736140292783,0.3608,99559.0,99557.0,0.050215]
[1736140292985,0.001,99558.0,99557.0,0.054215]
[1736140293183,0.001,99558.0,99557.0,0.059215]
[1736140293383,0.3608,99559.0,99557.0,0.050215]
[1736140293583,0.3618,99559.0,99557.0,0.059215]
[1736140294980,0.3608,99559.0,99557.0,0.050215]
[1736140295294,0.001,99558.0,99557.0,0.059215]
[1736140295687,0.3618,99559.0,99557.0,0.059215]
[1736140297293,0.407015,99559.0,99557.0,0.009]
[1736140297491,0.045217,99553.0,99542.0,0.3608]
[1736140297691,0.06352444,99552.0,99547.0,0.04522]
[1736140297886,0.0418,99558.0,99541.0,0.045222]
[1736140298089,0.3608,99549.0,99534.0,1.50056]
[1736140298290,0.06352444,99544.0,99543.0,0.045221]
[1736140298487,0.04522,99547.0,99543.0,0.045221]
[1736140298801,0.04522,99547.0,99544.0,0.045221]
[1736140300191,0.04622,99547.0,99544.0,0.054221]
[1736140300587,0.045221,99546.0,99544.0,0.054221]
[1736140300787,0.045221,99546.0,99544.0,0.058221]
[1736140300986,0.001,99547.0,99544.0,0.013]
[1736140301191,0.001,99547.0,99546.0,0.045221]
[1736140302197,0.001,99547.0,99544.0,0.013]
[1736140302393,0.045221,99545.0,99544.0,0.013]
[1736140302589,0.045221,99545.0,99544.0,0.004]
[1736140302793,0.045221,99545.0,99544.0,1.5]
[1736140303097,0.045221,99545.0,99544.0,1.504]
[1736140304589,0.045221,99545.0,99544.0,0.004]
[1736140304796,0.046221,99545.0,99544.0,0.011]
[1736140307601,0.19653113,99545.0,99544.0,0.011]
[1736140308798,0.09509271,99545.0,99544.0,0.011]
[1736140308992,0.09509271,99545.0,99544.0,0.056221]
[1736140309199,0.04987171,99545.0,99544.0,0.056221]
[1736140309596,0.04987171,99545.0,99544.0,1.556221]
[1736140309994,0.001,99545.0,99544.0,1.556221]
[1736140310298,0.18037216,99556.0,99555.0,0.045216]
[1736140310493,0.18037216,99556.0,99555.0,0.406016]
[1736140311495,0.18037216,99556.0,99555.0,0.408016]
[1736140311697,0.09028445,99556.0,99555.0,0.412016]
[1736140312104,0.09028445,99556.0,99555.0,1.912016]
[1736140314901,0.09028445,99561.0,99555.0,1.8668]
[1736140315103,0.09028445,99561.0,99560.0,0.045214]
[1736140316598,0.09028445,99561.0,99560.0,0.047214]
[1736140316898,0.09028445,99561.0,99560.0,0.048214]
[1736140320206,0.09028445,99562.0,99560.0,0.048214]
[1736140322006,0.09028445,99561.0,99560.0,0.048214]
[1736140323206,0.09028445,99561.0,99560.0,0.046214]
[1736140323407,0.09028445,99563.0,99560.0,0.048214]
[1736140324403,0.09028445,99563.0,99562.0,0.045213]
[1736140324812,0.09028445,99564.0,99562.0,0.045213]
[1736140325110,0.09028445,99564.0,99563.0,0.3608]
[1736140327812,0.13549645,99565.0,99563.0,0.3618]
[1736140329302,0.045212,99565.0,99563.0,0.3618]
[1736140331413,0.09028445,99566.0,99564.0,0.045212]
[1736140331611,0.12037927,99569.0,99568.0,0.045211]
[1736140331909,0.12037927,99569.0,99568.0,1.545211]
[1736140332807,0.09017487,99569.0,99568.0,1.545211]
[1736140333306,0.09117487,99569.0,99563.0,0.3608]
[1736140333504,0.3608,99565.0,99545.0,0.29960499]
[1736140333705,0.045221,99546.0,99545.0,0.29960499]
[1736140334715,0.045222,99543.0,99540.0,0.00052]
[1736140335020,0.045222,99543.0,99537.0,0.045224]
[1736140335203,0.045222,99543.0,99542.0,1.5]
[1736140336118,0.046222,99543.0,99542.0,1.5]
[1736140336509,0.046222,99543.0,99542.0,1.504]
[1736140338018,0.045222,99543.0,99542.0,0.004]
[1736140338221,0.046222,99543.0,99542.0,0.012]
[1736140339420,0.046222,99543.0,99542.0,0.008]
[1736140340816,0.045222,99543.0,99536.0,1.545785]
[1736140341015,0.045223,99541.0,99536.0,1.545225]
[1736140342123,0.045223,99541.0,99536.0,1.549225]
[1736140342330,0.045223,99541.0,99537.0,0.045225]
[1736140342523,0.09018492,99538.0,99537.0,0.045225]
[1736140343526,0.09018492,99538.0,99537.0,0.046225]
[1736140343827,0.09018492,99540.0,99537.0,0.046225]
[1736140344228,0.09018492,99540.0,99537.0,0.049225]
[1736140344627,0.13540792,99541.0,99537.0,0.049225]
[1736140346221,0.045223,99541.0,99537.0,0.049225]
[1736140347727,0.045223,99541.0,99540.0,0.045223]
[1736140349016,0.045223,99541.0,99540.0,0.046223]
[1736140350129,0.045223,99541.0,99540.0,0.001]
[1736140352634,0.16546956,99541.0,99540.0,0.001]
[1736140353529,0.16546956,99541.0,99540.0,0.601]
[1736140355243,0.045223,99541.0,99540.0,0.601]
[1736140356837,0.045223,99541.0,99540.0,0.001]
[1736140359432,0.16541874,99541.0,99540.0,0.001]
[1736140360136,0.52621874,99541.0,99540.0,0.001]
[1736140360536,0.406023,99541.0,99540.0,0.001]
[1736140362441,0.045223,99541.0,99540.0,0.001]
[1736140363442,0.09409558,99541.0,99540.0,0.001]
[1736140370543,0.09409558,99541.0,99529.0,0.23986998]
[1736140370544,0.045228,99530.0,99529.0,0.23986998]
[1736140371254,0.132828,99530.0,99529.0,0.23986998]
[1736140371439,0.13910619,99530.0,99523.0,0.3608]
[1736140371749,0.045231,99524.0,99523.0,0.3608]
[1736140372454,0.045233,99519.0,99518.0,0.23986998]
[1736140372643,0.406033,99519.0,99518.0,0.23986998]
[1736140373154,0.406033,99519.0,99516.0,0.00150709]
[1736140373155,0.045234,99517.0,99516.0,0.00150709]
[1736140374851,0.045234,99517.0,99516.0,0.00350709]
[1736140375152,0.0553171,99517.0,99516.0,0.00450709]
[1736140377545,0.20572563,99517.0,99516.0,0.00450709]
[1736140378945,0.0553171,99517.0,99516.0,0.00450709]
[1736140382156,0.0563171,99517.0,99516.0,0.00350709]
[1736140382747,0.0563171,99517.0,99516.0,0.00150709]
[1736140382955,0.0583171,99517.0,99516.0,0.00150709]
[1736140383459,0.0593171,99517.0,99516.0,0.00150709]
[1736140385055,0.0583171,99517.0,99516.0,0.00150709]
[1736140385260,0.0593171,99517.0,99516.0,0.00150709]
[1736140388565,0.045239,99505.0,99500.0,0.1]
[1736140389765,0.045239,99505.0,99504.0,0.3628]
[1736140389967,0.045239,99505.0,99504.0,0.3638]
[1736140400865,0.19564753,99505.0,99504.0,0.3638]
[1736140401875,0.09412836,99505.0,99504.0,0.3638]
[1736140403275,0.045239,99505.0,99504.0,0.3638]
[1736140405077,0.09412836,99505.0,99504.0,0.3638]
[1736140406975,0.09412836,99505.0,99504.0,0.003]
[1736140408269,0.27480136,99505.0,99504.0,0.003]
[1736140409572,0.20921386,99505.0,99504.0,0.003]
[1736140411175,0.045239,99505.0,99504.0,0.003]
[1736140411576,0.045246,99490.0,99489.0,0.17996967]
[1736140412675,0.045246,99490.0,99489.0,0.18296967]
[1736140412981,0.09513536,99490.0,99489.0,0.008]
[1736140414577,0.09513536,99490.0,99489.0,0.005]
[1736140414778,0.09513536,99490.0,99489.0,0.007]
[1736140414779,0.09413536,99490.0,99489.0,0.007]
[1736140414979,0.045247,99487.0,99472.0,1.5]
[1736140415172,0.406047,99487.0,99472.0,1.5]
[1736140416277,0.407047,99487.0,99486.0,0.00404]
[1736140417274,0.045252,99476.0,99471.0,0.3608]
[1736140418575,0.046252,99476.0,99475.0,0.00304]
[1736140418975,0.134352,99476.0,99475.0,0.00304]
[1736140419969,0.1442924,99476.0,99475.0,0.00304]
[1736140420884,0.1442924,99476.0,99475.0,0.00104]
[1736140421179,0.26456629,99476.0,99475.0,0.00104]
[1736140421368,0.22056629,99476.0,99475.0,0.00104]
[1736140421574,0.17646629,99476.0,99475.0,4e-05]
[1736140421773,0.17646629,99476.0,99475.0,0.00104]
[1736140422275,0.0561924,99476.0,99475.0,0.00104]
[1736140429286,0.0109404,99476.0,99475.0,0.00104]
[1736140430091,0.0109404,99476.0,99475.0,1.50104]
[1736140434808,0.0109404,99476.0,99475.0,1.50004]
[1736140435108,0.0099404,99476.0,99475.0,1.50104]
[1736140435304,0.045252,99477.0,99475.0,0.00104]
[1736140435702,0.09019478,99476.0,99475.0,0.00104]
[1736140437210,0.05517619,99477.0,99475.0,4e-05]
[1736140441409,0.20560925,99477.0,99475.0,4e-05]
[1736140442311,0.20560925,99477.0,99476.0,1.5]
[1736140442914,0.05517619,99477.0,99476.0,1.5]
[1736140443712,0.05517619,99477.0,99475.0,4e-05]
[1736140444117,0.20560925,99477.0,99475.0,0.045293]
[1736140445016,0.05517619,99477.0,99475.0,0.045293]
[1736140448214,0.05517619,99477.0,99475.0,4e-05]
[1736140448219,0.3608,99476.0,99475.0,4e-05]
[1736140448416,0.045256,99469.0,99468.0,0.23986998]
[1736140450328,0.21393072,99469.0,99460.0,0.00150811]
[1736140450514,0.3608,99468.0,99460.0,0.00150811]
[1736140451620,0.41071194,99468.0,99460.0,0.00150811]
[1736140451823,0.41071194,99468.0,99467.0,0.00204]
[1736140480442,0.53063451,99468.0,99467.0,0.00204]
[1736140482235,0.55041603,99468.0,99467.0,0.00204]
[1736140484141,0.53063451,99468.0,99467.0,0.00204]
[1736140484646,0.55041988,99468.0,99467.0,0.00204]
[1736140485847,0.53063451,99468.0,99467.0,0.00204]
[1736140490255,0.41071194,99468.0,99467.0,0.00204]
[1736140499948,0.53163609,99468.0,99467.0,0.00204]
[1736140504159,0.41071194,99468.0,99467.0,0.00204]
[1736140507663,0.06991788,99468.0,99467.0,0.00204]
[1736140507968,0.045247,99489.0,99467.0,0.66284]
[1736140508164,0.01019923,99485.0,99483.0,0.3608]
[1736140508669,0.254734,99489.0,99483.0,1.8608]
[1736140509669,0.002,99484.0,99483.0,1.8608]
[1736140510766,0.15520421,99488.0,99483.0,1.8608]
[1736140510968,0.16517449,99488.0,99483.0,1.8608]
[1736140511469,0.001,99484.0,99483.0,1.8608]
[1736140512356,0.003,99484.0,99483.0,1.8608]
[1736140512967,0.002,99484.0,99483.0,1.8608]
[1736140513265,0.002,99484.0,99483.0,0.3608]
[1736140513664,0.003,99484.0,99483.0,0.3608]
[1736140516075,0.12332837,99484.0,99483.0,0.3608]
[1736140517672,0.003,99484.0,99483.0,0.3608]
[1736140518482,0.003,99484.0,99479.0,0.0918]
[1736140519270,0.003,99484.0,99479.0,0.137051]
[1736140519566,0.002,99484.0,99479.0,0.137051]
[1736140519763,0.045248,99485.0,99479.0,0.0918]
[1736140519960,0.16557637,99485.0,99480.0,0.04525]
[1736140521575,0.09021111,99481.0,99480.0,0.04525]
[1736140522669,0.09121111,99481.0,99480.0,0.04525]
[1736140523075,0.09221111,99481.0,99480.0,0.04525]
[1736140525175,0.09221111,99481.0,99480.0,0.40605]
[1736140525368,0.002,99481.0,99480.0,0.40605]
[1736140525862,0.002,99481.0,99480.0,0.04525]
[1736140526075,0.002,99481.0,99480.0,0.40605]
[1736140528769,0.001,99481.0,99480.0,0.40605]
[1736140529171,0.16557737,99484.0,99480.0,0.40605]
[1736140529567,0.12032837,99484.0,99482.0,0.045249]
[1736140529977,0.12032837,99483.0,99482.0,0.045249]
[1736140531073,0.09025626,99485.0,99482.0,0.045249]
[1736140531468,0.13550526,99485.0,99482.0,0.045249]
[1736140532070,0.001,99483.0,99482.0,0.045249]
[1736140532673,0.09025626,99484.0,99482.0,0.045249]
[1736140533474,0.001,99483.0,99482.0,0.045249]
[1736140534274,0.002,99483.0,99482.0,0.045249]
[1736140534971,0.001,99483.0,99482.0,0.045249]
[1736140535779,0.002,99483.0,99482.0,0.045249]
[1736140539376,0.18083506,99494.0,99482.0,0.045249]
[1736140539580,0.209487,99505.0,99482.0,0.045249]
[1736140539581,0.209487,99505.0,99493.0,0.3608]
[1736140539778,0.209487,99505.0,99504.0,0.40604]
[1736140540081,0.209487,99505.0,99504.0,1.90604]
[1736140541374,0.23928955,99511.0,99504.0,1.90604]
[1736140541375,0.09034489,99511.0,99510.0,0.045237]
[1736140541978,0.09034489,99511.0,99510.0,1.545237]
[1736140542482,0.09134489,99511.0,99510.0,1.545237]
[1736140542686,0.001,99511.0,99510.0,1.545237]
[1736140543070,0.002,99511.0,99510.0,1.545237]
[1736140550581,0.001,99511.0,99510.0,1.545237]
[1736140551388,0.0432,99515.0,99514.0,0.045235]
[1736140554981,0.00150778,99516.0,99514.0,0.045235]
[1736140555582,0.09034489,99526.0,99525.0,0.04523]
[1736140555778,0.09034489,99526.0,99525.0,0.40603]
[1736140556180,0.09034489,99526.0,99525.0,1.90603]
[1736140556581,0.0081,99527.0,99525.0,1.90603]
[1736140557483,0.004,99526.0,99525.0,1.90603]
[1736140557989,0.002,99526.0,99525.0,1.90603]
[1736140560186,0.006,99526.0,99525.0,1.90603]
[1736140562986,0.09034489,99537.0,99536.0,0.045225]
[1736140563200,0.09034489,99537.0,99536.0,0.406025]
[1736140563688,0.09034489,99537.0,99536.0,1.906025]
[1736140564088,0.001,99537.0,99536.0,1.906025]
[1736140564289,0.002,99537.0,99536.0,1.906025]
[1736140565692,0.12045985,99546.0,99545.0,0.045221]
[1736140565890,0.12045985,99546.0,99545.0,0.406021]
[1736140566394,0.12045985,99546.0,99545.0,1.906021]
[1736140566792,0.0458,99558.0,99554.0,0.045217]
[1736140567091,0.0458,99558.0,99554.0,0.406017]
[1736140567686,0.0458,99558.0,99554.0,1.906017]
[1736140570300,0.00806,99576.0,99554.0,1.8608]
[1736140570596,0.0476,99568.0,99567.0,0.045211]
[1736140570794,0.0476,99568.0,99567.0,0.406011]
[1736140571500,0.0476,99568.0,99567.0,1.906011]
[1736140571803,0.0536,99568.0,99567.0,1.907011]
[1736140572011,0.06377412,99568.0,99567.0,1.907011]
[1736140573504,0.06677412,99568.0,99567.0,1.907011]
[1736140574591,0.06577412,99568.0,99567.0,1.906011]
[1736140576996,0.0556,99568.0,99567.0,1.906011]
[1736140577604,0.008,99568.0,99567.0,1.906011]
[1736140582620,0.008,99568.0,99567.0,1.91631108]
[1736140587230,0.0466,99589.0,99587.0,0.045202]
[1736140587421,0.0466,99589.0,99587.0,0.406002]
[1736140588018,0.0466,99589.0,99587.0,1.906002]
[1736140588926,0.0492,99588.0,99587.0,1.906002]
[1736140589929,0.0502,99588.0,99587.0,1.906002]
[1736140594426,0.1,99600.0,99587.0,1.906002]
[1736140594734,0.0944,99599.0,99598.0,0.045197]
[1736140595626,0.0944,99599.0,99598.0,0.405997]
[1736140596427,0.1034,99599.0,99598.0,0.405997]
[1736140597626,0.009,99599.0,99598.0,0.405997]
[1736140598134,0.008,99599.0,99598.0,1.905997]
[1736140598831,0.007,99599.0,99598.0,1.905997]
[1736140601326,0.12045985,99620.0,99618.0,0.045188]
[1736140601525,0.12045985,99620.0,99618.0,0.405988]
[1736140602023,0.12045985,99620.0,99618.0,1.905988]
[1736140602434,0.0513,99619.0,99618.0,1.905988]
[1736140602936,0.0603,99619.0,99618.0,1.906988]
[1736140603435,0.015,99619.0,99618.0,1.906988]
[1736140604733,0.009,99619.0,99618.0,1.906988]
[1736140604929,0.003,99619.0,99618.0,1.905988]
[1736140605131,0.009,99619.0,99618.0,1.906988]
[1736140605626,0.006,99619.0,99618.0,1.906988]
[1736140605825,0.007,99619.0,99618.0,1.905988]
[1736140609635,0.007,99619.0,99607.0,0.045193]
[1736140609636,0.04519,99614.0,99611.0,0.045191]
[1736140609832,0.007,99619.0,99604.0,0.17855932]
[1736140609833,0.045191,99611.0,99604.0,0.17855932]
[1736140610036,0.045191,99611.0,99608.0,0.045192]
[1736140610931,0.045191,99611.0,99609.0,0.045192]
[1736140611437,0.0456,99613.0,99611.0,0.045191]
[1736140612631,0.0486,99613.0,99611.0,0.045191]
[1736140613133,0.0496,99613.0,99611.0,0.045191]
[1736140613537,0.38923315,99624.0,99610.0,0.3608]
[1736140613738,0.38923315,99624.0,99618.0,0.045188]
[1736140613946,0.38923315,99624.0,99610.0,0.45760257]
[1736140614240,0.0922,99625.0,99621.0,0.3608]
[1736140614639,0.0922,99625.0,99624.0,0.045185]
[1736140615642,0.1042,99625.0,99624.0,0.045185]
[1736140616140,0.1042,99625.0,99624.0,0.046185]